Cogmind - Beta 10.2 *** ADVENTURER MODE // 2022.01.02 @ 23:46:29 // Winter2019/RPGLIKE Player: Grommile Result: Self-destructed Performance ------------- Evolutions (0) 0 Regions Visited (4) 800 Robots Destroyed (30) 150 Value Destroyed (485) 485 Prototype IDs (25) 500 Alien Tech Used (0) 0 Bonus (-10) -10 TOTAL SCORE: 1925 Bonus ------- Follower Combat Kills 60 Aligned with FarCom 300 Friendly Fire -370 Cogmind --------- Core Integrity 1152/1200 Matter 235/300 Energy 250/250 System Corruption 0% Temperature Cool (-100) Movement Walking (120) Location -9/Mines Parts ------- > --- POWER (1) -------- Ion Engine > --- PROPULSION (2) --- Aluminum Leg Aluminum Leg > --- UTILITY (3) ------ Cryofiber Web Improved Heat Sink PSU Rigger > --- WEAPON (2) ------- Particle Gun Rocket Launcher > --- INVENTORY (4) ---- Large Matter Pod (150) Assault Cannon Datajack Peak State ------------ > --- POWER ------------ Ion Engine > --- PROPULSION ------- Aluminum Leg Aluminum Leg > --- UTILITY ---------- Cryofiber Web Improved Heat Sink PSU Rigger > --- WEAPON ----------- Particle Gun Assault Cannon > --- INVENTORY -------- Large Matter Pod Rocket Launcher Datajack [Rating: 22] Favorites ----------- Power Ion Engine Engine Ion Engine Propulsion Aluminum Leg Leg Aluminum Leg Utility Improved Heat Sink Device Improved Heat Sink Weapon Small Laser Energy Gun Small Laser Ballistic Gun Light Assault Rifle Ballistic Cannon Light Cannon Launcher Rocket Launcher Impact Weapon Makeshift Hammer Special Melee Weapon Datajack Build | -11 -10 -10 -10 -9 ------- Run | Scr Mat Min Exi Min Slots Evolved 4 | 3 . . . 1 Power . | . . . . . Propulsion 1 | 1 . . . . Utility 2 | 1 . . . 1 Weapon 1 | 1 . . . . Parts Attached 21 | 6 3 8 . 4 Power 1 | 1 . . . . Engine 1 | 1 . . . . Core . | . . . . . Reactor . | . . . . . Propulsion 2 | 2 . . . . Treads . | . . . . . Leg 2 | 2 . . . . Wheel . | . . . . . Hover . | . . . . . Flight . | . . . . . Utility 5 | 1 2 1 . 1 Device 5 | 1 2 1 . 1 Storage . | . . . . . Processor . | . . . . . Hackware . | . . . . . Protection . | . . . . . Artifact . | . . . . . Weapon 13 | 2 1 7 . 3 Energy Gun 4 | 1 . 2 . 1 Energy Cannon . | . . . . . Ballistic Gun 1 | 1 . . . . Ballistic Cannon 4 | . 1 3 . . Launcher 1 | . . . . 1 Special Weapon . | . . . . . Impact Weapon 1 | . . 1 . . Slashing Weapon . | . . . . . Piercing Weapon . | . . . . . Special Melee Weapon 2 | . . 1 . 1 Unidentified Prototypes . | . . . . . Parts Lost . | . . . . . Power . | . . . . . Propulsion . | . . . . . Utility . | . . . . . Weapon . | . . . . . Highest Loss Streak . | . . . . . Average Slot Usage (%) 99 | . 99 100 100 100 Engine 13 | . 14 14 14 13 Leg 27 | . 28 28 28 27 Device 28 | . 27 28 28 30 Energy Gun 13 | . 14 14 14 12 Ballistic Cannon 13 | . 13 14 14 11 Naked Turns . | . . . . . Heaviest Build 16 | 8 11 15 15 16 Greatest Support 20 | 20 20 20 20 20 Greatest Overweight (x) 1 | 1 . . . . Average Overweight (x) . | . . . . . Largest Inventory Capacity 4 | 4 4 4 4 4 Average Capacity 3 | 3 4 4 4 4 Most Carried 4 | 3 4 4 4 4 Average Carried 3 | 1 3 3 3 3 Final Capacity 4 | 4 4 4 4 4 Final Carried 4 | 3 4 3 4 3 Class Distribution -------------------- 94% | Mutant 5% | Skirmisher Dominant Class ---------------- Mutant | -10/Materials Mutant | -10/Mines Mutant | -10/Exiles Skirmisher | -9/Mines Resources | -11 -10 -10 -10 -9 ----------- Run | Scr Mat Min Exi Min Matter Collected 606 | 276 165 100 40 25 Remotely . | . . . . . Salvage Created 766 | 196 389 148 . 33 Parts 58 | 15 18 17 . 8 Haulers Intercepted . | . . . . . Recyclers Shooed 1 | . 1 . . . Parts Field Recycled . | . . . . . Retrieved Matter . | . . . . . Parts Self-Destructed . | . . . . . Prevented . | . . . . . Kills | -11 -10 -10 -10 -9 ------- Run | Scr Mat Min Exi Min Combat Hostiles Destroyed 15 | . 6 2 . 7 Guns 5 | . 2 . . 3 Cannons 10 | . 4 2 . 4 Classes Destroyed 6 | 3 2 . . 1 Worker 3 | 2 . 1 . . Tunneler 4 | 3 . 1 . . Recycler 2 | 1 1 . . . Watcher 3 | . 3 . . . Swarmer 7 | . . . . 7 Grunt 11 | . 6 5 . . Best Kill Streak 5 | 4 5 2 . 4 Combat Bots Only 4 | . 2 2 . 4 Max Kills in Single Turn 1 | 1 1 1 . 1 Gunslinging . | . . . . . Exploded . | . . . . . Melee . | . . . . . Uniques/NPCs Destroyed . | . . . . . Combat | -11 -10 -10 -10 -9 -------- Run | Scr Mat Min Exi Min Damage Taken 559 | . 179 118 . 262 Core 453 | . 148 93 . 212 Absorbed by Shields . | . . . . . Redirected to Core 347 | . 101 85 . 161 Core Remaining (%) 100 | 100 . . . . Volleys Fired 63 | 16 25 10 . 12 Largest 2 | 2 2 2 . 2 Hottest 109 | 60 75 75 . 109 Shots Fired 124 | 32 50 20 . 22 Gun 79 | 32 25 10 . 12 Cannon 45 | . 25 10 . 10 Launcher . | . . . . . Special . | . . . . . Kinetic 61 | 16 25 10 . 10 Thermal 63 | 16 25 10 . 12 Explosive . | . . . . . Electromagnetic . | . . . . . Robot Hit Streak 20 | 11 15 20 . 9 Robot Miss Streak 4 | 1 4 1 . 1 Penetration Max . | . . . . . Secondary Targets . | . . . . . Shots Hit Robots 93 | 25 35 17 . 16 Core Hits 45 | 12 17 8 . 8 Critical Hits 1 | . 1 . . . Critical Kills . | . . . . . Critical Parts Destroyed 1 | . 1 . . . Melee Attacks 4 | . . 3 . 1 Impact . | . . . . . Slashing . | . . . . . Piercing . | . . . . . Sneak Attacks 3 | . . 3 . . Combat Hostiles . | . . . . . Follow-up Attacks . | . . . . . Damage Inflicted 1196 | 227 517 209 . 243 Guns 555 | 227 151 56 . 121 Cannons 641 | . 366 153 . 122 Explosions . | . . . . . Melee . | . . . . . Ramming . | . . . . . Kinetic 741 | 100 366 153 . 122 Thermal 455 | 127 151 56 . 121 Explosive . | . . . . . Electromagnetic . | . . . . . Impact . | . . . . . Slashing . | . . . . . Piercing . | . . . . . Highest Corruption . | . . . . . Average Corruption . | . . . . . Corruption Purged . | . . . . . Overload Shots . | . . . . . Overflow Damage . | . . . . . Projectiles . | . . . . . Explosions . | . . . . . Melee . | . . . . . Knockbacks 6 | . 4 2 . . Impact . | . . . . . Kinetic 6 | . 4 2 . . Secondary . | . . . . . Self-Inflicted Damage . | . . . . . Shots . | . . . . . Rammed . | . . . . . Targets Rammed . | . . . . . Kicked . | . . . . . Crushed . | . . . . . Highest Temperature 40 | 40 11 . . 30 Average Temperature 15 | 17 5 . . 16 Received Heat Transfer 192 | . 132 60 . . Siege Activations . | . . . . . Robots Corrupted . | . . . . . Combat Hostiles . | . . . . . Parts Fried . | . . . . . Impact Corruptions . | . . . . . Robots Melted . | . . . . . Combat Hostiles . | . . . . . Parts Melted 1 | . . . . 1 Heat Transferred 1071 | 300 350 125 . 296 Parts Sabotaged . | . . . . . Parts Stolen . | . . . . . Parts Stripped . | . . . . . Power Chain Reactions . | . . . . . Missiles Intercepted . | . . . . . Alert | -11 -10 -10 -10 -9 ------- Run | Scr Mat Min Exi Min Peak Influence 154 | 30 131 138 . 154 Initial 30 | . 16 30 . . Average 53 | 10 38 57 . 130 Maximum Alert Level . | . . . . . Low Security (%) 100 | 100 100 100 . 100 Level 1 . | . . . . . Level 2 . | . . . . . Level 3 . | . . . . . Level 4 . | . . . . . Level 5 . | . . . . . High Security . | . . . . . Max Security . | . . . . . Squads Dispatched 1 | . 1 . . . Investigation 1 | . 1 . . . Extermination . | . . . . . Reinforcement . | . . . . . Assault . | . . . . . Garrison . | . . . . . Intercept . | . . . . . Construction Impeded . | . . . . . Haulers Reinforced . | . . . . . Stealth | -11 -10 -10 -10 -9 --------- Run | Scr Mat Min Exi Min Distress Signals 3 | . 3 . . . Communications Jammed . | . . . . . Distress Signals . | . . . . . Times Spotted 25 | . 12 4 . 9 Peak Tracking Total 4 | . 4 2 . 4 Tactical Retreats . | . . . . . Traps | -11 -10 -10 -10 -9 ------- Run | Scr Mat Min Exi Min Traps Triggered 1 | . . 1 . . Indirectly . | . . . . . Trap Hack Attempts . | . . . . . Triggered . | . . . . . Disarmed . | . . . . . Reprogrammed . | . . . . . Reused . | . . . . . Traps Extracted . | . . . . . Installed . | . . . . . Triggered . | . . . . . Machines | -11 -10 -10 -10 -9 ---------- Run | Scr Mat Min Exi Min Machines Disabled . | . . . . . Max in Single Turn . | . . . . . Machines Sabotaged . | . . . . . Garrisons Compromised . | . . . . . Overloaded Fab Kills . | . . . . . Fab Network Shutdowns . | . . . . . Hacking | -11 -10 -10 -10 -9 --------- Run | Scr Mat Min Exi Min Machines Accessed 5 | . 2 1 1 1 Terminals 3 | . 2 . . 1 Fabricators . | . . . . . Repair Stations . | . . . . . Recycling Units . | . . . . . Scanalyzers . | . . . . . Garrison Access . | . . . . . Total Hacks 12 | . 6 1 1 4 Successful 6 | . 3 1 1 1 Failed 6 | . 3 . . 3 Catastrophic 1 | . . . . 1 Database Lockouts . | . . . . . Manual 6 | . 2 . 1 3 Terminals 10 | . 6 . . 4 Fabricators . | . . . . . Repair Stations . | . . . . . Recycling Units . | . . . . . Scanalyzers . | . . . . . Garrison Access . | . . . . . Terminal Hacks 6 | . 3 1 1 1 Open Door 1 | . . 1 . . Branch Access Points 1 | . 1 . . . Locate Traps 1 | . 1 . . . Zone Layout 2 | . 1 . . 1 EX-Prototype ID Bank 1 | . . . 1 . Fabricator Hacks . | . . . . . Repair Station Hacks . | . . . . . Recycling Unit Hacks . | . . . . . Scanalyzer . | . . . . . Garrison Access Hacks . | . . . . . Unauthorized Hacks . | . . . . . Terminals . | . . . . . Fabricators . | . . . . . Repair Stations . | . . . . . Recycling Units . | . . . . . Scanalyzers . | . . . . . Garrison Access . | . . . . . Data Cores Recovered . | . . . . . Used . | . . . . . Hacking Detections 3 | . 2 . . 1 Full Trace Events 2 | . 1 . . 1 Feedback Events . | . . . . . Feedback Blocked . | . . . . . Robot Schematics Acquired . | . . . . . Robots Built . | . . . . . Matter . | . . . . . Time . | . . . . . Total Robot Build Rating . | . . . . . Part Schematics Acquired . | . . . . . Parts Built . | . . . . . Matter . | . . . . . Time . | . . . . . Total Part Build Rating . | . . . . . Parts Repaired . | . . . . . Time . | . . . . . Parts Recycled . | . . . . . Recycled Matter . | . . . . . Retrieved Matter . | . . . . . Retrieved Components . | . . . . . Parts Scanalyzed . | . . . . . Part Schematics Acquired . | . . . . . Parts Damaged . | . . . . . Bothacking | -11 -10 -10 -10 -9 ------------ Run | Scr Mat Min Exi Min Used RIF Installer . | . . . . . Robots Hacked 4 | . . 3 . 1 Non-combat . | . . . . . Combat 4 | . . 3 . 1 Robot Hacks Applied 4 | . . 3 . 1 parse_system 4 | . . 3 . 1 Relay Couplers Released . | . . . . . Robots Rewired . | . . . . . Allies Hacked . | . . . . . Hacks Repelled . | . . . . . Allies | -11 -10 -10 -10 -9 -------- Run | Scr Mat Min Exi Min Total Allies 3 | . . 3 . . Largest Group 3 | . . 3 . . Highest-Rated Group 40 | . . 40 . . Highest-Rated Ally 16 | . . 16 . . Total Orders . | . . . . . Ally Attacks 14 | . . 14 . . Total Damage 213 | . . 213 . . Kills 2 | . . 2 . . Allies Corrupted . | . . . . . Allies Melted . | . . . . . Intel | -11 -10 -10 -10 -9 ------- Run | Scr Mat Min Exi Min Robot Analysis Total . | . . . . . Derelict Logs Recovered 2 | . . 2 . . Drone Launches . | . . . . . Drone Recoveries . | . . . . . Exploration | -11 -10 -10 -10 -9 ------------- Run | Scr Mat Min Exi Min Turns Passed 2239 | 144 574 776 597 148 Spaces Moved 1606 | 77 392 565 496 76 Core 10 | 10 . . . . Treads . | . . . . . Legs 1596 | 67 392 565 496 76 Wheels . | . . . . . Hover . | . . . . . Flight . | . . . . . Fastest Speed 50 | 50 120 120 120 120 Average Speed 119 | 113 120 120 120 120 Slowest Speed 120 | 120 120 120 120 120 Overloaded Moves . | . . . . . Propulsion Burnouts . | . . . . . Robots Hopped . | . . . . . Cave-ins Triggered . | . . . . . Exploration Rate (%) 52 | 4 58 89 90 19 Regions Visited 4 Branch Regions 3 Pre-discovered Areas . | . . . . . Known Exits Taken 1 | . 1 . . . Unknown Exits Taken 3 | 1 . 1 1 . Scrap Searched 1 | . . 1 . . Spaces Dug . | . . . . . Terrain Destroyed 3 | . . . . 3 Melee . | . . . . . Projectile 3 | . . . . 3 AOE . | . . . . . Terrain Rammed . | . . . . . Walls Destroyed . | . . . . . Machines Disabled . | . . . . . Actions | -11 -10 -10 -10 -9 --------- Run | Scr Mat Min Exi Min Total 1795 | 103 446 640 498 108 Wait 56 | . 17 35 . 4 Move 1602 | 76 391 564 495 76 Hop . | . . . . . Pick Up 11 | 5 2 2 2 . Fast Attach 11 | 4 2 5 . . Attach 4 | 2 . 1 . 1 Detach . | . . . . . Swap 6 | . 1 2 . 3 Drop 12 | . 3 8 1 . Fire 63 | 16 25 10 . 12 Melee 4 | . . 3 . 1 Ram . | . . . . . Kick . | . . . . . Crush . | . . . . . Escape Stasis . | . . . . . Rewire . | . . . . . Trap . | . . . . . Miscellaneous 26 | . 5 10 . 11 Route ------- -11/Scrapyard -10/Materials (discovered 3 exits: [*Mat] / *Min x2) -10/Mines (discovered 3 exits: [*Mat x2] / *Exi) -10/Exiles (discovered 2 exits: *Min x2) -9/Mines (discovered 1 exit: [*Mat]) History --------- Turn | Location | Event 11 | -11/Scrapyard | Discovered new exit (range 16) 29 | -11/Scrapyard | Upgraded with Propulsion slot (x1) 29 | -11/Scrapyard | Upgraded with Utility slot (x1) 29 | -11/Scrapyard | Upgraded with Weapon slot (x1) 145 | -11/Scrapyard | Entered Materials 166 | -10/Materials | Discovered new exit (range 14) 317 | -10/Materials | Build established: Mutant 351 | -10/Materials | Discovered new exit (range 4) 580 | -10/Materials | Identified exit to Mines 719 | -10/Materials | Entered Mines 733 | -10/Mines | Reached level 2 799 | -10/Mines | Assisted by bots powering up and referring to "LRC-V3" 819 | -10/Mines | Received a Rocket Launcher from a helpful Derelict 850 | -10/Mines | Discovered new exit (range 7) 929 | -10/Mines | A weapon hastily lodged in a ceiling crevice suddenly fell to the ground 1010 | -10/Mines | Discovered new exit (range 15) 1116 | -10/Mines | Learned Materials terminal intel 1124 | -10/Mines | Learned Materials terminal intel 1232 | -10/Mines | Met a Derelict who couldn't figure out how to use a Trap Extractor 1345 | -10/Mines | Deemed a non-threat by the Exiles lab entrance 1345 | -10/Mines | Discovered new exit (range 5) 1495 | -10/Mines | Entered Exiles 1515 | -10/Exiles | Discovered new exit (range 15) 1537 | -10/Exiles | Met 8R-AWN 1555 | -10/Exiles | Met EX-HEX 1622 | -10/Exiles | Visited The Gauntlet 1753 | -10/Exiles | Met EX-DEC 1882 | -10/Exiles | Met EX-BIN 1899 | -10/Exiles | Aligned with FarCom system 1900 | -10/Exiles | Given EX-Vault access code 1929 | -10/Exiles | Opened EX-Vault 1938 | -10/Exiles | Found PSU Rigger 1964 | -10/Exiles | Warned to stay clear of 0b10 Research branches 2078 | -10/Exiles | Discovered new exit (range 12) 2092 | -10/Exiles | Left Exiles lab with PSU Rigger 2092 | -10/Exiles | Entered Mines 2094 | -9/Mines | Reached level 3 2126 | -9/Mines | Discovered new exit (range 12) 2199 | -9/Mines | YI-UF0 nonchalantly dropped a Grenade Launcher on the ground 2208 | -9/Mines | Upgraded with Utility slot (x1) 2240 | -9/Mines | Self-destructed Last Messages --------------- U-05 Engineer lays Concrete. S-10 Pest destroyed. U-05 Engineer lays Concrete. U-05 Engineer builds a Wall. The unstable cave ceiling collapses. R-06 Scavenger collects Flight Unit. YI-UF0 destroyed. R-06 Scavenger collects Lgt. Assault Rifle. U-05 Engineer lays Concrete. K-01 Serf collects debris. U-05 Engineer lays Concrete. The unstable cave ceiling collapses. Used Protomatter to restore core integrity (+63, depleted) U-05 Engineer builds a Wall. The unstable cave ceiling collapses. R-06 Scavenger collects Lgt. Assault Rifle. K-01 Serf collects debris. U-05 Engineer lays Concrete. U-05 Engineer builds a Wall. K-01 Serf collects debris. Map ----- +----------------------------------------------------+ | ?????????????????????????????????????????????????? | | ?????????????????????????????????????????????????? | | ?????????????????????????????????????????????????? | | ?????????????????????????????????????????????????? | | ?????????????????????????????????????????????????? | | ?????????????????????????????????????????????????? | | ?????????????????????????????????????????????????? | | ?????????????????????????????????????????????????? | | ?????????????????????????????????????????????????? | | ?????????????????????????????????????????????????? | | ?????????????????????????????????????????????????? | | ?????????????????????????????????????????????????? | | ?????????????????????????????????????????????????? | | ?????????????????????????????????????????????????? | | ????????????????????????????##???????????????????? | | ??????????????????????????## ####????????????????? | | ?????????????????????????# #??? ???????????? | | ????????????????????????# #?? ????????????? | | ??????????????????????### ## ?????????????? | | ?????????????????????? ??????????????? | | ??????????????????????? ????????????????? | | ??????????????????????? ?????????????????? | | ??????????????#####????# #??#???????????????? | | ????????????### #???# ## #???????????????? | | ???????????## #### # #???????????????? | | ??????????## @ #####???????????? | | ??????????# # #???????????? | | ??????????# % ##??????????? | | ??????????# % #?????????? | | ??????????# ### r #?????????? | | ??????????? ????## # #?????????? | | ????"""????????????## k ##########???????????? | | ????"""????????????# # #????????????????????? | | ????"""????????????## # #????????????????????? | | ?## ##??????????# u# ##????????????????????? | | ??## ##???????????## ###??????? ?????????? | | ???## ##?????????????# ##### ?????????? | | ????# #??????????????## #????????????? | | ????# #?????????????## ##### #?????????????? | | ????# #???????????### ##????????????????????? | | ????# #???????##### #?????????????????????? | | ????# ##??##### < #?????????????????????? | | ????# [#### ### #?????????????????????? | | ????# [ = #####?##########?????????????????????? | | ????######" #????????????????????????????????????? | | ?????????## #????????????????????????????????????? | | ????####### #????????????????????????????????????? | | ????# #????????????????????????????????????? | | ???## #????????????????????????????????????? | | ???#T #????????????????????????????????????? | +----------------------------------------------------+ Best States ------------- Heat Dissipation 39 Energy Generation 10 Energy Capacity 250 Matter Stores 300 Matter Capacity 300 Sight Range 16 Robot Scan Range 10 Terrain Scan Range 16 Terrain Scan Density 10 Base Temperature (-) 100 Resistance: KI 20 Resistance: TH 20 Resistance: EX 20 Resistance: EM 20 Resistance: I 20 Resistance: S 20 Resistance: P 20 Evasion (%) 40 Offensive Hacking 10 Item Schematics ----------------- None Robot Schematics ------------------ None Fabricated ------------ Nothing Alien Tech Used ----------------- None Achievements -------------- None Challenges ------------ None RPGLIKE | -11 -10 -10 -10 -9 --------- Run | Scr Mat Min Exi Min Levels Raised 2 | . . 1 . 1 XP Earned 8158 | 4000 915 1044 350 1849 XP Spent 6260 | 4000 . 1460 . 800 Upgrades 25 | 7 . 17 . 1 Propulsion Slot 1 | 1 . . . . Utility Slot 2 | 1 . . . 1 Weapon Slot 1 | 1 . . . . Core Integrity 12 | . . 12 . . Inventory Capacity 4 | 4 . . . . Sensor Range 5 | . . 5 . . Protomatter Created 200 | . 34 116 . 50 Integrity Restored 476 | . 99 166 . 211 Core 405 | . 92 121 . 192 Parts 71 | . 7 45 . 19 Protomatter Decayed 145 | . . 145 . . Game ------ Seed DispersionAlertProjector Manual? 0 Play Time 00:21:45 Cumulative 19.4 hours Start 2022.01.02 @ 23:09:32 End 2022.01.02 @ 23:46:29 Sessions 3 Manual Loads 0 Difficulty Adventurer Special Mode Winter2019/RPGLIKE Game No. 39 Rogue 0 Adventurer 39 Explorer 0 Win Type - Total 0 Types 0/0/0/0/0/0/0/0/0 Lore% 37 Gallery% 40 Achievement% 22 Wizard Run 0 Options --------- ASCII 0 Keyboard 0 Movement Mouse Keybinds 0 Fullscreen 1 Font 18/SmallcapsGlow Map View 76x50 Tactical HUD 0 Map Filters NONE Filters NONE Steam 1 RUN: be9b9ab0-6ee4-44c7-9f67-fef5eed157b3